bitfinex-derivatives/quotes_ETHF0:USTF0_20250105
["timestamp","ask_amount","ask_price","bid_price","bid_amount"]
[1736051899581,11.04962883,3649.7,3649.6,11.0225807]
[1736051900572,8.6232,3649.7,3649.4,4.28663431]
[1736051900785,1.26569468,3649.5,3649.4,3.61263431]
[1736051901084,1.26569468,3649.5,3649.4,2.93863431]
[1736051901283,1.26569468,3649.5,3649.4,2.26463431]
[1736051901985,0.2741,3649.2,3649.1,6.43099468]
[1736051902180,1.3371,3649.2,3649.1,6.43099468]
[1736051902578,1.7581,3649.2,3649.1,6.43099468]
[1736051902883,1.7581,3649.2,3649.1,4.50713995]
[1736051904184,1.484,3649.2,3649.0,6.43099468]
[1736051904482,1.68272468,3649.1,3649.0,6.43099468]
[1736051905486,1.40862468,3649.1,3648.8,6.43099468]
[1736051905681,1.26574468,3648.9,3648.8,6.43099468]
[1736051906886,1.26574468,3648.9,3648.8,4.50361893]
[1736051910186,0.99162468,3648.9,3648.8,4.50361893]
[1736051910383,1.26574468,3648.9,3648.8,4.50361893]
[1736051910589,1.26574468,3648.9,3648.7,6.43099468]
[1736051910788,0.4451,3648.8,3648.7,6.43099468]
[1736051911988,0.4451,3648.8,3648.7,10.93158116]
[1736051913390,0.4451,3648.8,3648.7,4.50058648]
[1736051914781,0.4451,3648.8,3648.7,10.93158116]
[1736051916088,0.27411,3649.1,3648.7,10.93158116]
[1736051916290,0.99162468,3649.1,3648.8,0.27413]
[1736051916691,0.99162468,3649.1,3648.9,0.4081]
[1736051917089,3.2078,3649.4,3649.0,0.99162468]
[1736051917286,1.063,3649.3,3649.2,0.2741]
[1736051917486,1.063,3649.3,3649.1,0.4102]
[1736051917880,1.063,3649.3,3649.2,0.2741]
[1736051918093,0.99162468,3649.5,3649.2,0.2741]
[1736051918895,0.99162468,3649.5,3649.1,6.84119468]
[1736051919098,0.99162468,3649.5,3649.3,0.27409]
[1736051919598,0.99162468,3649.5,3649.4,0.4412]
[1736051925900,1.26569468,3649.5,3649.4,0.4412]
[1736051927205,0.99162468,3649.5,3649.4,0.4412]
[1736051930306,0.99162468,3649.5,3649.4,4.93944883]
[1736051931509,1.26569468,3649.5,3649.4,4.93944883]
[1736051931808,0.99162468,3649.5,3649.4,4.93944883]
[1736051932717,1.26569468,3649.5,3649.4,4.93944883]
[1736051933318,1.26569468,3649.5,3649.4,11.37044351]
[1736051934217,0.4062,3649.6,3649.4,11.37044351]
[1736051934415,0.4062,3649.6,3649.5,0.27407]
[1736051935726,1.68567468,3649.8,3649.4,12.36206819]
[1736051935920,0.4462,3649.7,3649.5,4.49824883]
[1736051937518,0.4462,3649.7,3649.6,10.92924351]
[1736051938123,0.72026,3649.7,3649.6,10.92924351]
[1736051938520,1.14326,3649.7,3649.6,10.92924351]
[1736051938725,1.14326,3649.7,3649.6,4.49824883]
[1736051939924,0.27407,3649.5,3649.4,6.87219468]
[1736051940829,0.27407,3649.5,3649.4,6.43099468]
[1736051941228,0.27407,3649.5,3649.4,4.49789322]
[1736051942320,0.27409,3649.3,3649.2,6.43099468]
[1736051942519,1.26571468,3649.3,3649.2,6.43099468]
[1736051943531,1.26571468,3649.3,3649.2,10.93036176]
[1736051951434,1.26571468,3649.3,3649.2,4.49936708]
[1736051953835,0.99162468,3649.3,3648.9,10.05959468]
[1736051954038,1.26573468,3649.0,3648.9,10.05959468]
[1736051954935,1.26573468,3649.0,3648.9,14.56182088]
[1736051956035,1.26573468,3649.0,3648.9,4.9230262]
[1736051958733,1.26573468,3649.0,3648.9,11.34470795]
[1736051962531,0.27411,3649.0,3648.9,11.34470795]
[1736051962933,0.27411,3649.0,3648.9,4.9230262]
[1736051971354,1.26573468,3649.0,3648.9,4.5022262]
[1736051971541,4.60812468,3649.0,3648.6,8.24187393]
[1736051971850,2.25737936,3648.7,3648.6,7.49127755]
[1736051973745,2.25737936,3648.7,3648.0,0.4102]
[1736051973746,2.39465819,3648.7,3648.0,0.4102]
[1736051973950,0.27418,3648.1,3648.0,0.4102]
[1736051977151,1.26580468,3648.1,3648.0,0.4102]
[1736051977853,0.27418,3648.1,3648.0,0.4102]
[1736051978155,1.26580468,3648.1,3648.0,0.4102]
[1736051982352,3.2078,3648.5,3648.0,0.4102]
[1736051982353,0.27417,3648.2,3648.0,0.4102]
[1736051982552,3.2078,3648.5,3648.0,0.4102]
[1736051982853,0.99162468,3648.3,3648.0,0.4102]
[1736051983053,0.99162468,3648.1,3648.0,0.4102]
[1736051983359,1.26580468,3648.1,3648.0,0.4102]
[1736051985250,0.27419,3647.9,3647.8,0.4065]
[1736051985554,1.26581468,3647.9,3647.8,0.8387]
[1736051986453,1.26581468,3647.9,3647.8,0.4322]
[1736051989952,0.27419,3647.9,3647.8,0.4322]
[1736051990157,1.26581468,3647.9,3647.8,0.4322]
[1736052001162,0.99162468,3647.9,3647.5,3.6308]
[1736052001363,0.99162468,3647.6,3647.5,4.036]
[1736052004566,0.99162468,3647.6,3647.5,0.8282]
[1736052005861,0.99162468,3647.6,3647.5,4.90785418]
[1736052006064,1.26583468,3647.8,3647.5,4.90785418]
[1736052006963,1.26583468,3647.8,3647.5,0.8282]
[1736052006964,0.99162468,3647.8,3647.5,0.8282]
[1736052007268,1.26582468,3647.8,3647.5,0.8282]
[1736052007769,0.99162468,3647.8,3647.5,1.10242]
[1736052008565,1.26580468,3648.2,3647.7,0.2742]
[1736052008861,1.26580468,3648.2,3647.6,0.99162468]
[1736052009066,1.26580468,3648.2,3647.8,0.2742]
[1736052009267,1.26580468,3648.2,3647.9,0.4163]
[1736052009467,1.26580468,3648.2,3648.0,0.4244]
[1736052010266,2.15427138,3648.5,3648.0,1.41602468]
[1736052010465,2.15427138,3648.5,3648.3,3.2078]
[1736052010773,3.14589606,3648.5,3648.3,3.2078]
[1736052010971,3.14589606,3648.5,3648.4,0.4371]
[1736052011671,1.26577468,3648.5,3648.4,0.4371]
[1736052013067,0.99162468,3648.5,3648.2,6.42460594]
[1736052013372,1.26578468,3648.3,3648.2,6.42460594]
[1736052014370,1.26578468,3648.3,3648.2,4.08110211]
[1736052015062,0.99162468,3648.3,3648.2,4.08110211]
[1736052015663,1.26577468,3648.5,3648.2,4.08110211]
[1736052015868,1.26577468,3648.5,3648.2,10.50570805]
[1736052016370,0.27416,3648.4,3648.2,10.50570805]
[1736052016870,1.26577468,3648.5,3648.2,10.50570805]
[1736052017065,0.27416,3648.4,3648.2,10.50570805]
[1736052017570,0.27416,3648.4,3648.3,4.08110211]
[1736052024773,0.27416,3648.4,3648.3,10.50458349]
[1736052027675,0.27416,3648.3,3648.2,4.28171426]
[1736052027874,1.26578468,3648.3,3648.2,4.28171426]
[1736052029780,0.27419,3648.0,3647.9,4.28171426]
[1736052029981,1.26581468,3648.0,3647.9,4.28171426]
[1736052031181,1.26581468,3648.0,3647.9,4.08217919]
[1736052034496,0.27419,3648.0,3647.9,4.08217919]
[1736052035004,1.26581468,3648.0,3647.9,4.08217919]
[1736052036697,0.99162468,3648.0,3647.8,4.28325992]
[1736052036891,0.99162468,3648.0,3647.7,3.2078]
[1736052036892,0.2742,3647.8,3647.7,3.2078]
[1736052037099,1.26582468,3647.8,3647.7,3.2078]
[1736052040904,1.26582468,3647.8,3647.7,7.29065386]
[1736052042605,1.26582468,3647.8,3647.7,4.08285386]
[1736052043005,2.15495504,3648.2,3647.7,4.08285386]
[1736052043199,3.14657972,3648.2,3647.8,0.2742]
[1736052043399,0.99162468,3648.0,3647.9,0.8576]
[1736052044700,0.99162468,3648.0,3647.9,4.93933927]
[1736052046004,0.99162468,3648.0,3647.9,11.36392578]
[1736052049210,1.26581468,3648.0,3647.9,11.36392578]
[1736052050508,1.26581468,3648.0,3647.9,10.50632578]
[1736052051712,0.27419,3647.9,3647.8,4.2835145]
[1736052051916,1.26581468,3647.9,3647.8,4.2835145]
[1736052054710,1.26581468,3647.9,3647.6,4.7056145]
[1736052054711,0.99162468,3647.9,3647.6,4.7056145]
[1736052054911,1.26583468,3647.7,3647.6,4.7056145]
[1736052055902,1.26583468,3647.7,3647.6,0.4221]
[1736052061522,1.26583468,3647.7,3647.5,4.2835145]
[1736052061523,0.99162468,3647.7,3647.5,4.2835145]
[1736052061724,0.68492,3647.6,3647.5,4.2835145]
[1736052061923,1.53742,3647.6,3647.5,4.2835145]
[1736052063829,1.2632,3647.6,3647.4,4.6934145]
[1736052064126,1.26584468,3647.5,3647.4,4.6934145]
[1736052068823,1.26584468,3647.5,3647.4,0.4099]
[1736052069328,0.27423,3647.4,3647.3,4.2835145]
[1736052069533,0.72043,3647.4,3647.3,4.2835145]
[1736052071233,3.654,3647.4,3647.1,4.2835145]
[1736052071528,1.26587468,3647.2,3647.1,4.2835145]
[1736052072930,1.26587468,3647.2,3647.0,6.86358651]
[1736052072931,0.27425,3647.1,3647.0,4.7225145]
[1736052077235,2.15495504,3647.5,3647.0,0.439]
[1736052077534,0.27425,3647.2,3647.1,0.4165]
[1736052078338,0.27425,3647.2,3647.1,4.7000145]
[1736052080938,0.27425,3647.2,3647.1,4.49999291]
[1736052086147,1.26586468,3647.3,3647.1,4.49999291]
[1736052087645,1.26586468,3647.3,3647.2,4.28433665]
[1736052090851,0.27425,3647.2,3647.1,4.28433665]
[1736052092250,0.27425,3647.1,3647.0,4.72333665]
[1736052092546,1.26587468,3647.1,3647.0,4.72333665]
[1736052095149,1.26587468,3647.1,3647.0,10.95139097]
[1736052099647,4.47367468,3647.1,3647.0,4.08780446]
[1736052100044,4.92127468,3647.1,3647.0,4.08780446]
[1736052100851,7.87945725,3647.1,3646.9,4.29130408]
[1736052101054,1.09396,3647.0,3646.9,4.29130408]
[1736052102353,1.09396,3647.0,3646.8,4.29130408]
[1736052102354,0.8197,3647.0,3646.8,4.29130408]
[1736052102553,1.26589468,3646.9,3646.8,4.29130408]
[1736052103866,0.99162468,3646.9,3646.7,4.29130408]
[1736052104057,0.27428,3646.8,3646.7,4.29130408]
[1736052109959,0.27428,3646.8,3646.7,4.08861821]
[1736052111061,0.99162468,3646.9,3646.6,6.42458651]
[1736052111262,0.27428,3646.8,3646.7,0.4437]
[1736052112954,1.26590468,3646.8,3646.7,0.4437]
[1736052114361,1.26590468,3646.8,3646.7,4.73333822]
[1736052115256,1.26590468,3646.8,3646.7,4.28963822]
[1736052117357,1.26590468,3646.8,3646.7,4.08898942]
[1736052118962,0.27428,3646.7,3646.6,6.42458651]
[1736052120563,0.27428,3646.7,3646.6,10.51322641]
[1736052121258,0.99162468,3646.8,3646.6,10.51322641]
[1736052121565,2.15673373,3647.0,3646.6,10.51322641]
[1736052122164,2.15673373,3647.1,3646.8,4.19942468]
[1736052122366,2.15673373,3647.1,3647.0,0.27426]
[1736052122557,2.15673373,3647.1,3646.9,0.8476]
[1736052122864,2.15673373,3647.1,3647.0,0.4404]
[1736052123462,1.26586468,3647.3,3647.0,13.09515525]
[1736052124367,0.27425,3647.2,3647.0,13.09515525]
[1736052124867,0.27425,3647.2,3647.1,4.0886399]
[1736052127368,1.14505,3647.2,3647.1,4.0886399]
[1736052127958,1.59065,3647.2,3647.1,4.0886399]
[1736052129658,1.3164,3647.2,3647.0,4.28805463]
[1736052129859,1.26587468,3647.1,3647.0,4.28805463]
[1736052130469,4.47367468,3647.1,3647.0,4.28805463]
[1736052132665,0.27426,3647.0,3646.9,4.28805463]
[1736052132873,1.26588468,3647.0,3646.9,4.28805463]
[1736052134174,0.27428,3646.7,3646.6,4.28805463]
[1736052134375,1.26590468,3646.7,3646.6,4.28805463]
[1736052135586,1.26590468,3646.7,3646.6,4.09013426]
[1736052136599,2.14010468,3646.7,3646.6,4.09013426]
[1736052138276,1.86582468,3646.7,3646.6,4.29077607]
[1736052138474,2.14010468,3646.7,3646.6,4.29077607]
[1736052143392,2.14010468,3646.7,3646.6,4.09031233]
[1736052151299,2.14010468,3646.7,3646.6,4.29082319]
[1736052154392,1.86582468,3646.7,3646.5,4.72012319]
[1736052154599,0.27429,3646.6,3646.5,4.72012319]
[1736052155001,1.26591468,3646.6,3646.5,4.72012319]
[1736052158106,0.27429,3646.6,3646.5,4.72012319]
[1736052160501,1.26591468,3646.6,3646.5,4.72012319]
[1736052160809,4.90591468,3646.6,3646.5,4.72012319]
[1736052160998,4.90591468,3646.6,3646.5,4.29082319]
[1736052165714,3.91429,3646.6,3646.5,4.29082319]
[1736052166115,4.90591468,3646.6,3646.5,4.71122319]
[1736052166516,4.90591468,3646.6,3646.5,0.4204]
[1736052167213,4.63162468,3646.6,3646.0,4.29082319]
[1736052167413,1.26595468,3646.1,3646.0,4.29082319]
[1736052168521,1.26595468,3646.1,3646.0,4.70132319]
[1736052173318,0.27433,3646.1,3646.0,4.70132319]
[1736052173512,0.99162468,3646.1,3646.0,4.70132319]
[1736052174214,0.99162468,3646.1,3646.0,4.50034146]
[1736052174414,1.26595468,3646.1,3646.0,4.50034146]
[1736052175216,0.27432,3646.2,3646.0,10.9305334]
[1736052175417,1.26594468,3646.2,3646.0,10.9305334]
[1736052175616,0.99162468,3646.2,3646.0,10.9305334]
[1736052175818,1.26594468,3646.2,3646.0,10.9305334]
[1736052176520,1.26594468,3646.2,3646.1,10.5200334]
[1736052177321,1.26593468,3646.4,3646.1,10.5200334]
[1736052178219,1.26593468,3646.4,3646.1,4.08984146]
[1736052178424,6.35452685,3646.6,3646.1,4.08984146]
[1736052178620,3.14672685,3646.6,3646.2,3.2078]
[1736052178816,3.14672685,3646.6,3646.3,0.4352]
[1736052179018,0.2743,3646.5,3646.4,0.4235]
[1736052179216,2.15510217,3646.7,3646.5,4.29220097]
[1736052179423,1.48060217,3646.7,3646.6,0.27429]
[1736052179626,1.48060217,3646.7,3646.6,3.2078]
[1736052180827,0.99162468,3646.8,3646.6,24.0776201]
[1736052181924,0.99162468,3646.8,3646.7,4.08984146]
[1736052187127,0.99162468,3647.0,3646.7,4.08984146]
[1736052187328,0.27426,3647.1,3646.8,1.43902468]
[1736052187531,1.26587468,3647.2,3647.0,3.2078]
[1736052187730,0.27425,3647.1,3647.0,3.2078]
[1736052189033,0.27425,3647.1,3647.0,7.29764146]
[1736052190126,0.27425,3647.1,3647.0,7.49393886]
[1736052191533,1.26587468,3647.2,3647.0,7.49393886]
[1736052192329,1.26587468,3647.2,3647.0,4.28613886]
[1736052193029,0.4468,3647.5,3647.0,4.28613886]
[1736052193233,0.99162468,3647.4,3647.0,4.28613886]
[1736052193437,1.26586468,3647.4,3647.0,4.28613886]
[1736052193932,0.27424,3647.3,3647.0,4.28613886]
[1736052194437,0.27424,3647.3,3647.1,4.28613886]
[1736052194837,0.27424,3647.3,3647.2,0.4202]
[1736052200238,0.27425,3647.2,3647.0,4.28613886]
[1736052200434,1.67637468,3647.1,3647.0,4.28613886]
[1736052201839,0.27428,3646.8,3646.7,4.28613886]
[1736052202037,1.26590468,3646.8,3646.7,4.28613886]
[1736052203039,1.26590468,3646.8,3646.4,8.97431535]
[1736052203040,0.99162468,3646.8,3646.4,4.69433886]
[1736052203240,0.2743,3646.5,3646.4,4.69433886]
[1736052204128,1.41782468,3646.6,3646.4,7.90213886]
[1736052205136,1.41782468,3646.6,3646.5,0.4477]
[1736052207256,1.41782468,3646.6,3646.5,4.73383886]
[1736052208533,0.99162468,3646.6,3646.5,4.73383886]
[1736052210132,0.99162468,3646.6,3646.5,4.54736765]
[1736052212541,0.99162468,3646.6,3646.5,10.97764215]
[1736052215043,1.26591468,3646.6,3646.5,10.52994215]
[1736052217336,0.99162468,3646.6,3646.1,4.2883949]
[1736052217645,0.99162468,3646.2,3646.1,4.2883949]
[1736052218141,1.82792468,3646.2,3646.1,4.2883949]
[1736052219133,2.10224468,3646.2,3646.1,4.2883949]
[1736052220438,0.8363,3646.2,3646.1,4.2883949]
[1736052220646,1.82792468,3646.2,3646.1,4.2883949]
[1736052221044,1.82792468,3646.2,3646.0,4.2883949]
[1736052222045,2.10224468,3646.2,3646.0,4.2883949]
[1736052222545,2.10224468,3646.2,3646.1,4.2883949]
[1736052225347,1.39672468,3646.2,3646.1,4.2883949]
[1736052225841,1.39672468,3646.2,3646.1,4.7094949]
[1736052226243,1.67104468,3646.2,3646.1,4.7094949]
[1736052227342,1.39672468,3646.2,3646.1,4.7094949]
[1736052227944,1.67104468,3646.2,3646.1,4.7094949]
[1736052229549,1.67104468,3646.2,3646.1,0.4211]
[1736052229950,1.39672468,3646.2,3646.1,0.4211]
[1736052231249,0.27434,3646.1,3645.9,7.4961949]
[1736052231458,0.99162468,3646.0,3645.9,7.4961949]
[1736052231651,0.99162468,3646.0,3645.9,4.7164949]
[1736052231955,1.26596468,3646.0,3645.9,4.2883949]
[1736052232252,2.12836468,3646.0,3645.9,4.2883949]
[1736052234049,1.85402468,3646.0,3645.7,4.2883949]
[1736052234255,0.99162468,3645.8,3645.7,4.2883949]
[1736052234445,1.26597468,3645.8,3645.7,4.2883949]
[1736052244271,1.26597468,3645.8,3645.5,4.0528]
[1736052244569,0.99162468,3645.6,3645.5,4.0528]
[1736052245569,0.99162468,3645.6,3645.5,8.3411949]
[1736052247075,0.99162468,3645.6,3645.5,8.15861569]
[1736052249773,1.26599468,3645.6,3645.5,8.15861569]
[1736052249976,0.99162468,3645.6,3645.5,8.15861569]
[1736052251579,0.99162468,3645.6,3645.5,8.34378758]
[1736052254977,1.26599468,3645.6,3645.5,8.34378758]
[1736052256672,1.26599468,3645.6,3645.5,8.16095574]
[1736052258778,1.26599468,3645.6,3645.5,4.95315574]
[1736052259572,1.26599468,3645.6,3645.5,11.38343024]
[1736052262575,1.26599468,3645.6,3645.5,4.95315574]
[1736052263667,0.99162468,3645.6,3645.5,4.95315574]
[1736052263868,1.26599468,3645.6,3645.5,4.95315574]
[1736052264075,0.99162468,3645.6,3645.5,4.95315574]
[1736052264577,1.26599468,3645.6,3645.5,4.95315574]
[1736052271484,1.26599468,3645.6,3645.5,4.10815574]
[1736052276386,2.25761936,3645.6,3645.5,4.10815574]
[1736052276796,2.25761936,3645.6,3645.5,10.55852823]
[1736052277294,1.26599468,3645.6,3645.5,10.55852823]
[1736052278588,1.40336937,3645.6,3645.4,4.30090164]
[1736052278793,2.12619468,3645.5,3645.4,4.30090164]
[1736052280292,0.27439,3645.3,3645.2,4.30090164]
[1736052280488,1.26601468,3645.3,3645.2,4.30090164]
[1736052284391,0.99162468,3645.3,3645.1,4.72830164]
[1736052284592,0.6881,3645.2,3645.1,4.72830164]
[1736052286200,1.26601468,3645.3,3645.1,4.72830164]
[1736052286391,1.26601468,3645.3,3645.2,0.439]
[1736052287504,1.26601468,3645.3,3645.2,4.73990164]
[1736052287998,0.99162468,3645.3,3645.2,4.73990164]
[1736052288891,0.99162468,3645.3,3645.2,4.55233927]
[1736052289100,1.26601468,3645.3,3645.2,4.55233927]
[1736052291500,1.26601468,3645.3,3645.2,4.73630956]
[1736052291704,0.27439,3645.3,3645.2,4.73630956]
[1736052299908,0.99162468,3645.4,3645.2,4.73630956]
[1736052300109,0.27439,3645.3,3645.2,4.73630956]
[1736052300311,1.26600468,3645.4,3645.2,4.73630956]
[1736052300513,0.27439,3645.3,3645.2,0.439]
[1736052302208,0.27439,3645.3,3645.2,4.73630956]
[1736052303215,0.99162468,3645.4,3645.2,4.73630956]
[1736052303421,0.27439,3645.3,3645.2,4.73630956]
[1736052304617,0.27439,3645.3,3645.2,4.55403683]
[1736052305509,0.99162468,3645.4,3645.2,7.76183683]
[1736052306922,0.27439,3645.3,3645.2,4.55403683]
[1736052307128,1.26601468,3645.4,3645.2,4.55403683]
[1736052307626,1.26601468,3645.4,3645.3,4.11503683]
[1736052311322,1.26601468,3645.4,3645.3,4.30327274]
[1736052311323,3.42279147,3645.4,3645.3,4.30327274]
[1736052312725,0.27439,3645.3,3645.2,4.30327274]
[1736052313527,3.48219,3645.3,3645.2,4.30327274]
[1736052314426,0.2744,3645.2,3645.1,4.30327274]
[1736052314621,1.26602468,3645.2,3645.1,4.30327274]
[1736052317330,1.26602468,3645.2,3645.1,4.74697274]
[1736052317531,4.22906978,3645.2,3645.1,0.4437]
[1736052318529,3.2374451,3645.2,3645.1,0.4437]
[1736052319032,3.2374451,3645.3,3645.1,4.84221745]
[1736052319433,3.2374451,3645.3,3645.2,0.4316]
[1736052320540,0.99162468,3645.4,3645.2,21.6437944]
[1736052320735,0.99162468,3645.4,3645.2,21.3693944]
[1736052322241,0.99162468,3645.4,3645.3,20.9377944]
[1736052327040,0.99162468,3645.4,3645.3,4.12411745]
[1736052327342,1.26600468,3645.4,3645.3,4.12411745]
[1736052327548,2.13480468,3645.4,3645.3,4.12411745]
[1736052329631,2.13480468,3645.4,3645.3,10.58450677]
[1736052333447,1.26600468,3645.4,3645.3,10.58450677]
[1736052334834,0.99162468,3645.4,3645.3,10.58450677]
[1736052335032,1.26600468,3645.4,3645.3,10.58450677]
[1736052336643,1.26600468,3645.4,3645.3,4.12411745]
[1736052340442,0.99162468,3645.4,3645.3,4.12411745]
[1736052340648,3.15047805,3645.6,3645.4,0.27438]
[1736052340942,3.15047805,3645.6,3645.5,0.4357]
[1736052341147,3.15047805,3645.6,3645.5,0.8734]
[1736052341344,0.99162468,3645.6,3645.5,11.45687659]
[1736052341547,1.26599468,3645.6,3645.5,11.45687659]
[1736052342348,0.99162468,3645.6,3645.5,11.45687659]
[1736052344348,1.26599468,3645.6,3645.5,11.45687659]
[1736052344548,0.99162468,3645.6,3645.5,11.45687659]
[1736052351054,0.99162468,3645.6,3645.5,10.58347659]
[1736052351257,1.26599468,3645.6,3645.5,10.58347659]
[1736052353654,3.42484805,3645.6,3645.5,4.30257784]
[1736052357456,3.42484805,3645.6,3645.3,6.45935914]
[1736052357457,0.27437,3645.5,3645.4,4.30257784]
[1736052357658,1.67089468,3645.5,3645.4,4.30257784]
[1736052358652,2.66251936,3645.5,3645.4,4.30257784]
[1736052359257,6.03734131,3645.5,3645.2,4.30257784]
[1736052359453,1.26601468,3645.3,3645.2,4.30257784]
[1736052361066,0.2744,3645.2,3645.1,4.30257784]
[1736052361253,1.1344,3645.2,3645.1,4.30257784]
[1736052362460,3.29286118,3645.2,3645.1,4.30257784]
[1736052363763,1.1344,3645.2,3645.1,4.30257784]
[1736052364963,1.1344,3645.2,3645.1,4.12780285]
[1736052366759,3.01850051,3645.2,3645.0,6.45935914]
[1736052366959,1.71352468,3645.1,3645.0,6.45935914]
[1736052368265,1.71352468,3645.1,3645.0,10.58779734]
[1736052373970,1.26602468,3645.1,3645.0,10.58779734]
[1736052375671,1.26602468,3645.1,3645.0,4.1284382]
[1736052376172,1.26602468,3645.1,3645.0,4.5494382]
[1736052376773,1.26602468,3645.1,3645.0,4.1284382]
[1736052378374,1.26602468,3645.1,3644.9,6.45935914]
[1736052378375,0.27441,3645.0,3644.9,4.30557024]
[1736052379868,1.26603468,3645.1,3644.9,4.30557024]
[1736052380777,1.26603468,3645.1,3645.0,4.30557024]
[1736052383278,1.26603468,3645.1,3644.9,4.30557024]
[1736052383468,0.99162468,3645.0,3644.9,4.30557024]
[1736052387780,1.26603468,3645.0,3644.9,4.30557024]
[1736052390085,0.27443,3644.7,3644.6,4.30557024]
[1736052390283,1.26605468,3644.7,3644.6,4.30557024]
[1736052391481,0.27444,3644.6,3644.5,0.4269]
[1736052394082,4.22906978,3644.7,3644.1,4.30557024]
[1736052394387,1.26609468,3644.2,3644.1,4.30557024]
[1736052394687,0.99162468,3644.2,3644.1,4.30557024]
[1736052395887,0.99162468,3644.2,3644.0,4.71927024]
[1736052396385,1.26609468,3644.2,3644.0,4.71927024]
[1736052400090,0.27448,3644.1,3644.0,4.71927024]
[1736052400989,0.71938,3644.1,3644.0,4.71927024]
[1736052401193,0.71938,3644.1,3644.0,0.4137]
[1736052409594,0.27448,3644.1,3644.0,0.4137]
[1736052410993,3.2078,3644.3,3644.0,0.4137]
[1736052411190,0.99162468,3644.1,3644.0,0.4137]
[1736052411394,0.99162468,3644.1,3644.0,0.68819]
[1736052411898,0.99162468,3644.1,3644.0,0.4137]
[1736052416998,0.99162468,3644.1,3644.0,4.71927024]
[1736052420104,0.99162468,3644.1,3644.0,4.54066917]
[1736052425299,0.99162468,3644.1,3644.0,11.00002831]
[1736052426604,0.27447,3644.2,3644.0,11.00002831]
[1736052427199,0.27448,3644.1,3644.0,11.00002831]
[1736052428407,0.27448,3644.1,3644.0,4.54066917]
[1736052428711,1.26610468,3644.1,3644.0,4.54066917]
[1736052432310,1.26610468,3644.1,3644.0,13.10678452]
[1736052434105,1.26610468,3644.1,3644.0,12.81169341]
[1736052435011,0.99162468,3644.1,3644.0,12.81169341]
[1736052435504,1.26610468,3644.1,3644.0,12.81169341]
[1736052440013,0.99162468,3644.1,3644.0,12.81169341]
[1736052440712,0.27447,3644.2,3644.0,12.81169341]
[1736052441010,1.26609468,3644.2,3644.0,12.81169341]
[1736052441808,1.26609468,3644.2,3644.0,16.01949341]
[1736052442109,1.26609468,3644.2,3644.1,12.39799341]
[1736052445114,2.57090135,3644.4,3644.1,13.38961809]
[1736052445314,2.15650135,3644.4,3644.3,1.26608468]
[1736052446210,2.15650135,3644.4,3644.3,6.26608468]
[1736052446418,2.15944278,3644.9,3644.3,19.38124277]
[1736052446616,2.15944278,3644.9,3644.8,4.47385468]
[1736052447817,0.4395,3645.3,3645.0,0.27441]
[1736052448018,0.99162468,3645.2,3645.1,0.4238]
[1736052449117,0.99162468,3645.2,3644.8,26.37774884]
[1736052449420,1.26604468,3644.9,3644.8,10.77195543]
[1736052450920,1.26604468,3644.9,3644.8,4.30562521]
[1736052453426,1.26604468,3644.9,3644.7,4.30562521]
[1736052454313,0.27441,3645.0,3644.7,4.30562521]
[1736052454513,0.99162468,3644.8,3644.7,4.30562521]
[1736052455326,0.99162468,3644.8,3644.7,10.64866826]
[1736052456921,0.99162468,3644.8,3644.7,4.19023045]
[1736052458628,0.99162468,3644.8,3644.7,10.64866826]
[1736052459933,0.99162468,3644.8,3644.7,4.30381122]
[1736052461637,0.99162468,3644.8,3644.7,4.57824122]
[1736052461837,0.8784,3645.1,3644.7,4.57824122]
[1736052461838,0.99162468,3645.0,3644.7,4.57824122]
[1736052462038,0.99162468,3645.0,3644.8,0.27443]
[1736052462239,0.99162468,3645.0,3644.8,0.68933]
[1736052462541,0.99162468,3645.0,3644.8,0.4149]
[1736052462738,0.99162468,3645.0,3644.9,4.30381122]
[1736052463843,0.4395,3645.3,3644.9,4.30381122]
[1736052464142,0.99162468,3645.4,3645.1,0.2744]
[1736052464932,0.99162468,3645.4,3645.2,0.4156]
[1736052465439,0.99162468,3645.3,3645.2,0.4156]
[1736052467446,0.99162468,3645.3,3645.2,0.69]
[1736052468544,0.99162468,3645.3,3645.2,0.4156]
[1736052482351,0.99162468,3645.3,3645.1,4.30381122]
[1736052482546,0.4153,3645.2,3645.1,4.30381122]
[1736052484448,0.4153,3645.2,3645.1,4.57821122]
[1736052485353,0.4153,3645.2,3645.1,4.46456042]
[1736052487548,0.4153,3645.2,3645.1,4.19016042]
[1736052489758,0.4153,3645.2,3645.1,10.64859823]
[1736052491357,0.4153,3645.2,3645.1,4.19016042]
[1736052491559,0.4153,3645.2,3645.1,4.46456042]
[1736052493661,0.99162468,3645.3,3645.2,0.2744]
[1736052494160,0.69178,3645.5,3645.2,0.2744]
[1736052494161,0.4174,3645.5,3645.4,0.27438]
[1736052494554,0.4174,3645.5,3645.2,0.4489]
[1736052494555,0.4174,3645.5,3645.3,0.27439]
[1736052495363,0.4174,3645.5,3645.3,3.48219]
[1736052496263,0.4374,3645.6,3645.4,10.92967052]
[1736052496465,0.4374,3645.6,3645.5,0.69137]
[1736052497459,0.4374,3645.6,3645.5,0.417]
[1736052498062,0.4374,3645.6,3645.5,4.60716042]
[1736052500558,0.4374,3645.6,3645.5,11.07229052]
[1736052503566,0.71177,3645.6,3645.5,11.07229052]
[1736052504164,0.4374,3645.6,3645.5,11.07229052]
[1736052506767,0.71177,3645.6,3645.5,11.07229052]
[1736052506969,0.71177,3645.6,3645.5,10.65529052]
[1736052507570,0.71177,3645.6,3645.5,4.19016042]
[1736052509874,0.4374,3645.6,3645.5,4.19016042]
[1736052510076,0.71177,3645.6,3645.5,4.19016042]
[1736052510370,0.71177,3645.6,3645.5,10.65851276]
[1736052513274,8.14900845,3645.6,3645.5,8.77251276]
[1736052513477,7.15738377,3645.6,3645.5,8.77251276]
[1736052514778,0.27439,3645.3,3645.2,4.31358228]
[1736052514979,1.26601468,3645.3,3645.2,4.31358228]
[1736052516068,4.50477383,3645.3,3645.2,4.31358228]
[1736052516281,4.91653549,3645.3,3645.2,4.31358228]
[1736052516982,5.33473549,3645.3,3645.2,4.31358228]
[1736052520186,4.06872081,3645.3,3645.2,4.31358228]
[1736052520391,3.65052081,3645.3,3645.2,7.52138228]
[1736052521383,4.50476383,3645.4,3645.2,7.52138228]
[1736052521585,0.27439,3645.3,3645.2,4.31358228]
[1736052521783,0.68669,3645.3,3645.2,4.31358228]
[1736052522993,4.64268383,3645.3,3645.1,4.31358228]
[1736052523292,0.7056,3645.2,3645.1,4.31358228]
[1736052537109,0.2744,3645.1,3645.0,4.31358228]
[1736052537305,1.68612468,3645.1,3645.0,4.31358228]
[1736052539906,0.27441,3645.0,3644.9,4.31358228]
[1736052540204,1.26603468,3645.0,3644.9,4.31358228]
[1736052542704,1.26603468,3645.0,3644.9,4.14651721]